fUST/lending_fUST_20250118
["ID","MTS","AMOUNT","RATE_DAILY","PERIOD"]
[349479815,1737204640282,-58.51597083,0.00022191,3]
[349479816,1737204640293,-441.48402917,0.00022191,3]
[349479817,1737204640305,-330.09,0.00022191,3]
[349479818,1737204640314,-500.0,0.00022191,3]
[349479819,1737204640323,-668.56,0.00022191,3]
[349479820,1737204640332,-3964.21,0.00022191,3]
[349479821,1737204640342,-952.7,0.00022191,3]
[349479822,1737204640351,-1120.37,0.00022191,3]
[349479823,1737204640360,-350.92,0.00022191,3]
[349479824,1737204640369,-640.93,0.00022191,3]
[349479825,1737204640378,-500.0,0.00022191,3]
[349479826,1737204640387,-500.0,0.00022191,3]
[349479827,1737204640397,-88.97739082,0.00022191,3]
[349479848,1737204643145,-411.02260918,0.00022191,3]
[349479850,1737204643155,-88.97739082,0.00022328,2]
[349479861,1737204646181,-411.02260918,0.00022328,2]
[349479862,1737204646193,-500.0,0.00022328,3]
[349479863,1737204646205,-500.0,0.00022328,3]
[349479864,1737204646214,-3655.9705913,0.00022328,3]
[349479865,1737204646228,-624.7826615,0.00022328,3]
[349479867,1737205222682,168.739853,0.00013973,2]
[349479904,1737205333460,1235.000001,0.00025,120]
[349479905,1737205356628,1000.0,0.00025,120]
[349479940,1737205832379,-300.0,0.00019725,2]
[349479942,1737205832388,-300.0,0.00019924,2]
[349479944,1737205832398,-300.0,0.00019999,2]
[349479946,1737205832408,-17510.83266,0.0002,4]
[349479948,1737205832417,-2667.783162,0.00020662,2]
[349479950,1737205832427,-5895.0579411,0.00020708,2]
[349479952,1737205832437,-24470.18,0.00021163,2]
[349479954,1737205832447,-500.0,0.00021163,2]
[349479957,1737205832457,-500.0,0.00021163,2]
[349479958,1737205832467,-500.0,0.00021163,2]
[349479960,1737205832476,-500.0,0.00021163,2]
[349479963,1737205832486,-405.19805427,0.00021163,2]
[349479964,1737205832495,-420.0,0.00021777,2]
[349479967,1737205832505,-206.21982289,0.000219,3]
[349479968,1737205832515,-500.0,0.00021917,3]
[349479971,1737205832524,-500.0,0.00021917,3]
[349479973,1737205832534,-500.0,0.00021917,3]
[349479975,1737205832547,-238.43108563,0.00021917,3]
[349479977,1737205832557,-500.0,0.00021917,3]
[349479979,1737205832566,-500.37,0.00021917,3]
[349479981,1737205832579,-500.0,0.00021917,3]
[349479983,1737205832588,-4332.62,0.00021917,3]
[349479986,1737205832597,-500.0,0.00021917,3]
[349479988,1737205832607,-500.0,0.00021917,3]
[349479990,1737205832616,-832.02,0.00021917,3]
[349479992,1737205832625,-500.0,0.00021917,3]
[349479994,1737205832634,-3468.68,0.00021917,3]
[349479996,1737205832643,-500.0,0.00021917,3]
[349479998,1737205832652,-980.33,0.00021917,3]
[349480000,1737205832662,-500.0,0.00021917,3]
[349480002,1737205832672,-846.65,0.00021917,3]
[349480004,1737205832681,-500.0,0.00021917,3]
[349480006,1737205832690,-500.0,0.00021917,3]
[349480008,1737205832699,-500.0,0.00021917,3]
[349480010,1737205832709,-914.98,0.00021917,3]
[349480012,1737205832718,-1031.50698744,0.00021917,3]
[349480014,1737205832731,-1259.20301256,0.00021917,3]
[349480016,1737205832740,-500.0,0.00021917,3]
[349480019,1737205832752,-374.95152588,0.00021917,3]
[349480021,1737205832765,-206.21982267,0.0002198,3]
[349480023,1737205832777,-161.89640854,0.00022,2]
[349480026,1737205832789,-1702.0,0.00022008,2]
[349480028,1737205832800,-500.0,0.00022054,3]
[349480030,1737205832811,-500.0,0.00022054,3]
[349480032,1737205832821,-500.0,0.00022054,3]
[349480034,1737205832834,-500.0,0.00022054,3]
[349480036,1737205832844,-150.26797035,0.00022054,3]
[349480038,1737205832858,-349.73202965,0.00022054,3]
[349480041,1737205832870,-2943.16763155,0.00022054,3]
[349480043,1737205832883,-1389.45236845,0.00022054,3]
[349480045,1737205832894,-500.0,0.00022054,3]
[349480047,1737205832904,-147.50569455,0.00022054,3]
[349480050,1737205832917,-352.49430545,0.00022054,3]
[349480052,1737205832929,-832.02,0.00022054,3]
[349480054,1737205832939,-500.0,0.00022054,3]
[349480056,1737205832950,-3468.68,0.00022054,3]
[349480058,1737205832961,-500.0,0.00022054,3]
[349480061,1737205832972,-980.33,0.00022054,3]
[349480063,1737205832982,-500.0,0.00022054,3]
[349480065,1737205832993,-846.65,0.00022054,3]
[349480067,1737205833004,-500.0,0.00022054,3]
[349480069,1737205833015,-914.98,0.00022054,3]
[349480072,1737205833027,-2290.71,0.00022054,3]
[349480074,1737205833038,-319.30933571,0.00022054,3]
[349480076,1737205833052,-180.69066429,0.00022054,3]
[349480079,1737205833063,-206.21982267,0.0002206,3]
[349480081,1737205833075,-206.21982267,0.0002214,3]
[349480083,1737205833086,-500.0,0.00022189,3]
[349480085,1737205833097,-500.0,0.00022189,3]
[349480087,1737205833108,-500.0,0.00022189,3]
[349480089,1737205833119,-166.482,0.0002219,2]
[349480091,1737205833130,-500.0,0.00022191,3]
[349480093,1737205833141,-500.0,0.00022191,3]
[349480096,1737205833152,-500.0,0.00022191,3]
[349480098,1737205833164,-4332.62,0.00022191,3]
[349480100,1737205833176,-500.0,0.00022191,3]
[349480102,1737205833188,-500.0,0.00022191,3]
[349480104,1737205833198,-832.02,0.00022191,3]
[349480107,1737205833210,-154.02,0.00022191,3]
[349480109,1737205833221,-1269.24333607,0.00022191,3]
[349480115,1737205833275,-2199.43666393,0.00022191,3]
[349480117,1737205833286,-500.0,0.00022191,3]
[349480119,1737205833297,-980.33,0.00022191,3]
[349480122,1737205833307,-500.0,0.00022191,3]
[349480124,1737205833319,-846.65,0.00022191,3]
[349480126,1737205833334,-914.98,0.00022191,3]
[349480128,1737205833346,-2290.71,0.00022191,3]
[349480130,1737205833358,-500.0,0.00022191,3]
[349480132,1737205833369,-206.21982267,0.0002222,3]
[349480135,1737205833381,-206.21982267,0.000223,3]
[349480137,1737205833392,-500.0,0.00022326,3]
[349480139,1737205833403,-500.0,0.00022328,3]
[349480141,1737205833414,-500.0,0.00022328,3]
[349480143,1737205833426,-500.0,0.00022328,3]
[349480146,1737205833438,-4332.62,0.00022328,3]
[349480148,1737205833450,-500.0,0.00022328,3]
[349480149,1737205833461,-500.0,0.00022328,3]
[349480150,1737205833472,-832.02,0.00022328,3]
[349480151,1737205833484,-3468.68,0.00022328,3]
[349480152,1737205833495,-500.0,0.00022328,3]
[349480153,1737205833506,-980.33,0.00022328,3]
[349480154,1737205833516,-500.0,0.00022328,3]
[349480155,1737205833526,-846.65,0.00022328,3]
[349480156,1737205833537,-914.98,0.00022328,3]
[349480157,1737205833548,-2290.71,0.00022328,3]
[349480158,1737205833558,-500.0,0.00022328,3]
[349480159,1737205833567,-206.21982267,0.0002238,3]
[349480160,1737205833586,-206.21982267,0.0002246,3]
[349480161,1737205833599,-4575.88410679,0.00022465,5]
[349480162,1737205833609,-500.0,0.00022465,3]
[349480163,1737205833622,-500.0,0.00022465,3]
[349480164,1737205833632,-500.0,0.00022465,3]
[349480165,1737205833645,-4332.62,0.00022465,3]
[349480166,1737205833656,-500.0,0.00022465,3]
[349480168,1737205833668,-500.0,0.00022465,3]
[349480170,1737205833679,-832.02,0.00022465,3]
[349480172,1737205833689,-3468.68,0.00022465,3]
[349480174,1737205833699,-500.0,0.00022465,3]
[349480176,1737205833709,-980.33,0.00022465,3]
[349480178,1737205833719,-452.45055452,0.00022465,3]
[349480181,1737205833730,-291.34405531,0.00022465,3]
[349480183,1737205833743,-522.43314339,0.00022465,3]
[349480185,1737205833755,-32.8728013,0.00022465,3]
[349480188,1737205833767,-914.98,0.00022465,3]
[349480190,1737205833778,-1286.84298183,0.00022465,3]
[349480192,1737205833792,-1003.86701817,0.00022465,3]
[349480194,1737205833802,-500.0,0.00022465,3]
[349480196,1737205833813,-206.21982267,0.0002254,3]
[349480199,1737205833825,-1643.71114581,0.00022602,5]
[349480284,1737205838348,-309.57,0.00021751,2]
[349480285,1737205838361,-85.43,0.00021751,2]
[349480286,1737205838372,-4135.93199772,0.00022602,5]
[349480287,1737205838382,-500.0,0.00022602,3]
[349480288,1737205838393,-500.0,0.00022602,3]
[349480289,1737205838403,-500.0,0.00022602,3]
[349480290,1737205838414,-4332.62,0.00022602,3]
[349480291,1737205838425,-500.0,0.00022602,3]
[349480292,1737205838435,-234.40473834,0.00022602,3]
[349480294,1737205838635,-265.59526166,0.00022602,3]
[349480295,1737205838645,-832.02,0.00022602,3]
[349480296,1737205838655,-3468.68,0.00022602,3]
[349480297,1737205838664,-500.0,0.00022602,3]
[349480298,1737205838674,-980.33,0.00022602,3]
[349480299,1737205838684,-846.65,0.00022602,3]
[349480300,1737205838694,-139.0785018,0.00022602,3]
[349480301,1737205838706,-775.9014982,0.00022602,3]
[349480302,1737205838716,-68.28932554,0.00022602,3]
[349480303,1737205838728,-2222.42067446,0.00022602,3]
[349480304,1737205838738,-541.9,0.00022602,3]
[349480305,1737205838748,-206.21982267,0.0002262,3]
[349480306,1737205838758,-19.54449787,0.000227,3]
[349480307,1737205838770,-186.6753248,0.000227,3]
[349480308,1737205838787,-500.0,0.00022739,3]
[349480309,1737205838807,-500.0,0.00022739,3]
[349480310,1737205838817,-500.0,0.00022739,3]
[349480311,1737205838828,-1470.7501056,0.00022739,3]
[349480440,1737205843402,-569.40651414,0.00021917,3]
[349480442,1737205843412,-1930.59348586,0.00022739,3]
[349480868,1737206093213,168.084872,0.00013973,2]
[349480904,1737206957075,167.801046,0.00013973,2]
[349481003,1737207032614,-2074.38189977,0.0001881,2]
[349481005,1737207032624,-2074.38189977,0.00019,2]
[349481007,1737207032634,-300.0,0.00019887,2]
[349481009,1737207032644,-10494.88014822,0.00019888,7]
[349481011,1737207032654,-500.0,0.00020105,2]
[349481013,1737207032667,-169.217991,0.00020289,2]
[349481015,1737207032676,-20546.189476,0.000205,2]
[349481018,1737207032686,-600.0,0.00021,2]
[349481020,1737207032696,-553.9772649,0.00021088,2]
[349481022,1737207032706,-151.20890723,0.0002126,2]
[349481024,1737207032715,-11141.3911798,0.00021293,2]
[349481026,1737207032725,-408.258313,0.00021336,2]
[349481028,1737207032734,-408.258313,0.00021421,2]
[349481030,1737207032743,-408.258313,0.00021507,2]
[349481033,1737207032753,-408.258313,0.00021592,2]
[349481036,1737207032763,-420.0,0.00021657,2]
[349481040,1737207032772,-408.258313,0.00021678,2]
[349481043,1737207032781,-408.258313,0.00021763,2]
[349481046,1737207032791,-408.258313,0.00021849,2]
[349481048,1737207032800,-3137.49462063,0.000219,3]
[349481050,1737207032810,-155.18,0.00021917,2]
[349481052,1737207032820,-503.31893353,0.00021917,3]
[349481054,1737207032829,-312.90607351,0.00021917,3]
[349481056,1737207032839,-500.0,0.00021917,3]
[349481058,1737207032851,-500.0,0.00021917,3]
[349481060,1737207032860,-568.96582375,0.00021917,3]
[349481061,1737207032871,-500.0,0.00021917,3]
[349481063,1737207032881,-500.0,0.00021917,3]
[349481066,1737207032891,-500.0,0.00021917,3]
[349481068,1737207032900,-183.131,0.00021917,2]
[349481070,1737207032911,-170.30925434,0.00021917,3]
[349481071,1737207032920,-500.0,0.00021917,3]
[349481074,1737207032930,-500.0,0.00021917,3]
[349481075,1737207032939,-500.0,0.00021917,3]
[349481078,1737207032950,-500.0,0.00021917,3]
[349481080,1737207032960,-500.0,0.00021917,3]
[349481082,1737207032970,-500.0,0.00021917,3]
[349481084,1737207032981,-500.0,0.00021917,3]
[349481086,1737207032991,-500.0,0.00021917,3]
[349481088,1737207033000,-500.0,0.00021917,3]
[349481090,1737207033010,-500.0,0.00021917,3]
[349481092,1737207033020,-500.0,0.00021917,3]
[349481094,1737207033029,-299.06352534,0.00021917,3]
[349481096,1737207033039,-500.0,0.00021917,3]
[349481098,1737207033049,-500.0,0.00021917,3]
[349481100,1737207033058,-500.0,0.00021917,3]
[349481102,1737207033067,-500.0,0.00021917,3]
[349481104,1737207033076,-500.0,0.00021917,3]
[349481106,1737207033086,-500.0,0.00021917,3]
[349481108,1737207033100,-500.0,0.00021917,3]
[349481110,1737207033110,-500.0,0.00021917,3]
[349481112,1737207033120,-500.0,0.00021917,3]
[349481114,1737207033130,-500.0,0.00021917,3]
[349481116,1737207033140,-500.0,0.00021917,3]
[349481118,1737207033150,-500.0,0.00021917,3]
[349481120,1737207033160,-500.0,0.00021917,3]
[349481122,1737207033171,-500.0,0.00021917,3]
[349481124,1737207033181,-500.0,0.00021917,3]
[349481126,1737207033191,-500.0,0.00021917,3]
[349481128,1737207033201,-500.0,0.00021917,3]
[349481130,1737207033210,-500.0,0.00021917,3]
[349481132,1737207033221,-500.0,0.00021917,3]
[349481134,1737207033231,-500.0,0.00021917,3]
[349481136,1737207033241,-500.0,0.00021917,3]
[349481138,1737207033251,-542.28048342,0.00021917,3]
[349481140,1737207033262,-500.0,0.00021917,3]
[349481142,1737207033272,-500.0,0.00021917,3]
[349481144,1737207033282,-500.0,0.00021917,3]
[349481146,1737207033291,-500.0,0.00021917,3]
[349481148,1737207033301,-500.0,0.00021917,3]
[349481150,1737207033311,-500.0,0.00021917,3]
[349481152,1737207033321,-500.0,0.00021917,3]
[349481154,1737207033332,-533.41313949,0.00021917,3]
[349481156,1737207033344,-500.0,0.00021917,3]
[349481159,1737207033354,-500.0,0.00021917,3]
[349481161,1737207033364,-500.0,0.00021917,3]
[349481163,1737207033374,-500.0,0.00021917,3]
[349481165,1737207033383,-500.0,0.00021917,3]
[349481167,1737207033392,-500.0,0.00021917,3]
[349481169,1737207033402,-500.0,0.00021917,3]
[349481170,1737207033412,-500.0,0.00021917,3]
[349481172,1737207033421,-500.0,0.00021917,3]
[349481174,1737207033431,-500.0,0.00021917,3]
[349481177,1737207033441,-500.0,0.00021917,3]
[349481179,1737207033451,-500.0,0.00021917,3]
[349481181,1737207033461,-500.0,0.00021917,3]
[349481183,1737207033471,-500.0,0.00021917,3]
[349481185,1737207033480,-500.0,0.00021917,3]
[349481187,1737207033490,-296.90120375,0.00021917,3]
[349481189,1737207033499,-500.0,0.00021917,3]
[349481191,1737207033509,-500.0,0.00021917,3]
[349481193,1737207033519,-500.0,0.00021917,3]
[349481195,1737207033529,-1005.2517451,0.00021917,3]
[349481197,1737207033539,-500.0,0.00021917,3]
[349481199,1737207033549,-500.0,0.00021917,3]
[349481201,1737207033559,-500.0,0.00021917,3]
[349481203,1737207033568,-500.0,0.00021917,3]
[349481205,1737207033577,-500.0,0.00021917,3]
[349481207,1737207033587,-500.0,0.00021917,3]
[349481209,1737207033602,-500.0,0.00021917,3]
[349481211,1737207033612,-500.0,0.00021917,3]
[349481213,1737207033630,-500.0,0.00021917,3]
[349481215,1737207033641,-500.0,0.00021917,3]
[349481217,1737207033651,-500.0,0.00021917,3]
[349481219,1737207033662,-500.0,0.00021917,3]
[349481221,1737207033672,-500.0,0.00021917,3]
[349481223,1737207033681,-500.0,0.00021917,3]
[349481225,1737207033692,-500.0,0.00021917,3]
[349481227,1737207033702,-500.0,0.00021917,3]
[349481228,1737207033711,-1096.26,0.00021917,2]
[349481231,1737207033721,-500.0,0.00021917,3]
[349481232,1737207033731,-500.0,0.00021917,3]
[349481234,1737207033741,-188.62668198,0.00021917,2]
[349481237,1737207033751,-500.0,0.00021917,3]
[349481239,1737207033761,-500.0,0.00021917,3]
[349481241,1737207033771,-500.0,0.00021917,3]
[349481243,1737207033780,-593.78051752,0.00021917,3]
[349481244,1737207033790,-500.0,0.00021917,3]
[349481246,1737207033800,-500.0,0.00021917,3]
[349481248,1737207033809,-500.0,0.00021917,3]
[349481250,1737207033819,-500.0,0.00021917,3]
[349481253,1737207033828,-500.0,0.00021917,3]
[349481255,1737207033838,-500.53434876,0.00021917,3]
[349481256,1737207033851,-500.0,0.00021917,3]
[349481259,1737207033860,-500.0,0.00021917,3]
[349481261,1737207033872,-500.0,0.00021917,3]
[349481263,1737207033881,-500.0,0.00021917,3]
[349481265,1737207033891,-500.0,0.00021917,3]
[349481267,1737207033900,-500.0,0.00021917,3]
[349481269,1737207033909,-500.0,0.00021917,3]
[349481271,1737207033920,-500.0,0.00021917,3]
[349481273,1737207033929,-500.0,0.00021917,3]
[349481275,1737207033938,-500.0,0.00021917,3]
[349481276,1737207033949,-500.0,0.00021917,3]
[349481279,1737207033959,-500.0,0.00021917,3]
[349481281,1737207033968,-500.0,0.00021917,3]
[349481283,1737207033978,-500.0,0.00021917,3]
[349481285,1737207033987,-500.0,0.00021917,3]
[349481286,1737207033996,-500.0,0.00021917,3]
[349481288,1737207034006,-500.0,0.00021917,3]
[349481291,1737207034016,-500.0,0.00021917,3]
[349481293,1737207034025,-500.0,0.00021917,3]
[349481295,1737207034036,-500.0,0.00021917,3]
[349481297,1737207034045,-500.0,0.00021917,3]
[349481299,1737207034054,-500.0,0.00021917,3]
[349481301,1737207034063,-447.27566104,0.00021917,3]
[349481303,1737207034072,-500.0,0.00021917,3]
[349481305,1737207034082,-500.0,0.00021917,3]
[349481307,1737207034094,-500.0,0.00021917,3]
[349481309,1737207034103,-500.0,0.00021917,3]
[349481311,1737207034112,-500.0,0.00021917,3]
[349481313,1737207034121,-500.0,0.00021917,3]
[349481315,1737207034131,-500.0,0.00021917,3]
[349481317,1737207034140,-500.0,0.00021917,3]
[349481319,1737207034150,-500.0,0.00021917,3]
[349481321,1737207034160,-500.0,0.00021917,3]
[349481323,1737207034169,-500.0,0.00021917,3]
[349481325,1737207034178,-4568.34,0.00021917,3]
[349481327,1737207034190,-500.0,0.00021917,3]
[349481329,1737207034200,-500.0,0.00021917,3]
[349481331,1737207034209,-500.0,0.00021917,3]
[349481333,1737207034219,-506.33934603,0.00021917,3]
[349481335,1737207034228,-500.0,0.00021917,3]
[349481337,1737207034238,-500.0,0.00021917,3]
[349481339,1737207034247,-500.0,0.00021917,3]
[349481341,1737207034257,-500.0,0.00021917,3]
[349481343,1737207034267,-500.0,0.00021917,3]
[349481345,1737207034277,-500.0,0.00021917,3]
[349481347,1737207034286,-500.0,0.00021917,3]
[349481349,1737207034296,-160.0,0.00021917,3]
[349481351,1737207034305,-500.0,0.00021917,3]
[349481353,1737207034314,-500.0,0.00021917,3]
[349481355,1737207034324,-537.50173363,0.00021917,3]
[349481357,1737207034333,-500.0,0.00021917,3]
[349481359,1737207034345,-500.0,0.00021917,3]
[349481361,1737207034354,-372.91937508,0.00021917,3]
[349481363,1737207034363,-500.0,0.00021917,3]
[349481365,1737207034372,-1350.47,0.00021917,3]
[349481367,1737207034382,-500.0,0.00021917,3]
[349481369,1737207034391,-500.0,0.00021917,3]
[349481371,1737207034400,-500.0,0.00021917,3]
[349481373,1737207034410,-500.0,0.00021917,3]
[349481375,1737207034419,-500.0,0.00021917,3]
[349481377,1737207034429,-500.0,0.00021917,3]
[349481379,1737207034439,-500.0,0.00021917,3]
[349481381,1737207034448,-4865.72,0.00021917,3]
[349481383,1737207034458,-500.0,0.00021917,3]
[349481385,1737207034467,-500.0,0.00021917,3]
[349481387,1737207034477,-500.0,0.00021917,3]
[349481389,1737207034487,-500.0,0.00021917,3]
[349481391,1737207034496,-500.0,0.00021917,3]
[349481393,1737207034506,-500.0,0.00021917,3]
[349481395,1737207034516,-500.0,0.00021917,3]
[349481397,1737207034525,-500.0,0.00021917,3]
[349481399,1737207034535,-500.0,0.00021917,3]
[349481401,1737207034544,-500.0,0.00021917,3]
[349481403,1737207034553,-823.17,0.00021917,3]
[349481405,1737207034563,-1942.41,0.00021917,3]
[349481407,1737207034573,-500.0,0.00021917,3]
[349481409,1737207034583,-500.0,0.00021917,3]
[349481411,1737207034594,-500.0,0.00021917,3]
[349481413,1737207034603,-500.0,0.00021917,3]
[349481415,1737207034612,-500.0,0.00021917,3]
[349481417,1737207034622,-500.0,0.00021917,3]
[349481419,1737207034631,-500.0,0.00021917,3]
[349481421,1737207034640,-500.0,0.00021917,3]
[349481423,1737207034650,-500.0,0.00021917,3]
[349481425,1737207034660,-1192.52,0.00021917,3]
[349481427,1737207034669,-1207.16,0.00021917,3]
[349481429,1737207034678,-500.0,0.00021917,3]
[349481431,1737207034688,-499.0,0.00021917,2]
[349481433,1737207034697,-500.0,0.00021917,3]
[349481435,1737207034707,-500.0,0.00021917,3]
[349481437,1737207034717,-500.0,0.00021917,3]
[349481439,1737207034726,-500.0,0.00021917,3]
[349481441,1737207034736,-463.16792737,0.00021917,2]
[349481443,1737207034746,-500.0,0.00021917,3]
[349481445,1737207034757,-500.0,0.00021917,3]
[349481447,1737207034766,-500.0,0.00021917,3]
[349481449,1737207034775,-500.0,0.00021917,3]
[349481451,1737207034784,-500.0,0.00021917,3]
[349481453,1737207034794,-500.0,0.00021917,3]
[349481455,1737207034804,-500.0,0.00021917,3]
[349481457,1737207034813,-166.78,0.0002192,2]
[349481459,1737207034823,-166.78,0.0002192,2]
[349481461,1737207034832,-166.78,0.0002192,2]
[349481463,1737207034843,-166.78,0.0002192,2]
[349481465,1737207034853,-166.78,0.0002192,2]
[349481467,1737207034862,-166.78,0.0002192,2]
[349481469,1737207034875,-166.78,0.0002192,2]
[349481471,1737207034884,-408.258313,0.00021934,2]
[349481473,1737207034893,-3137.49462036,0.00021969,3]
[349481475,1737207034903,-501.620995,0.00021973,2]
[349481477,1737207034914,-179.83914795,0.00021973,2]
[349481479,1737207034923,-505.50786307,0.00021973,2]
[349481481,1737207034933,-500.0,0.00021973,2]
[349481483,1737207034943,-520.13321862,0.00021973,2]
[349481485,1737207034952,-500.59803229,0.00021973,2]
[349481487,1737207034962,-2889.82157177,0.00022,5]
[349481489,1737207034971,-2287.94205339,0.00022,5]
[349481491,1737207034981,-300.0,0.00022,3]
[349481493,1737207034991,-345.1828825,0.00022,2]
[349481495,1737207035000,-14026.57978292,0.00022,2]
[349481497,1737207035010,-23540.59967478,0.00022,2]
[349481499,1737207035019,-1000.0,0.00022,2]
[349481501,1737207035028,-3137.49462036,0.00022038,3]
[349481502,1737207035037,-2419.76751636,0.0002205,60]
[349481503,1737207035046,-500.0,0.00022053,3]
[349481504,1737207035056,-500.0,0.00022053,3]
[349481505,1737207035065,-322.61716554,0.00022054,3]
[349481506,1737207035074,-500.0,0.00022054,3]
[349481507,1737207035084,-500.0,0.00022054,3]
[349481508,1737207035094,-500.0,0.00022054,3]
[349481509,1737207035103,-500.0,0.00022054,3]
[349481510,1737207035112,-500.0,0.00022054,3]
[349481511,1737207035121,-500.0,0.00022054,3]
[349481512,1737207035131,-235.3,0.00022054,3]
[349481513,1737207035140,-639.61,0.00022054,3]
[349481514,1737207035149,-500.0,0.00022054,3]
[349481515,1737207035158,-500.0,0.00022054,3]
[349481517,1737207035168,-500.0,0.00022054,3]
[349481521,1737207035177,-500.0,0.00022054,3]
[349481522,1737207035287,-500.0,0.00022054,3]
[349481523,1737207035297,-500.0,0.00022054,3]
[349481524,1737207035307,-509.61631367,0.00022054,3]
[349481525,1737207035316,-500.0,0.00022054,3]
[349481526,1737207035325,-521.68,0.00022054,3]
[349481527,1737207035334,-641.36,0.00022054,3]
[349481528,1737207035347,-500.0,0.00022054,3]
[349481529,1737207035357,-500.0,0.00022054,3]
[349481530,1737207035366,-500.0,0.00022054,3]
[349481531,1737207035375,-1096.26,0.00022054,2]
[349481532,1737207035385,-500.0,0.00022054,3]
[349481533,1737207035397,-182.17404814,0.00022054,3]
[349481534,1737207035406,-500.0,0.00022054,3]
[349481535,1737207035415,-500.0,0.00022054,3]
[349481536,1737207035425,-500.0,0.00022054,3]
[349481537,1737207035435,-500.0,0.00022054,3]
[349481538,1737207035446,-405.83,0.00022054,3]
[349481539,1737207035455,-638.08,0.00022054,3]
[349481540,1737207035464,-500.0,0.00022054,3]
[349481541,1737207035474,-500.0,0.00022054,3]
[349481542,1737207035483,-500.0,0.00022054,3]
[349481543,1737207035492,-500.0,0.00022054,3]
[349481544,1737207035501,-500.0,0.00022054,3]
[349481545,1737207035510,-500.0,0.00022054,3]
[349481546,1737207035520,-188.77679239,0.00022054,3]
[349481547,1737207035529,-4568.34,0.00022054,3]
[349481548,1737207035539,-500.0,0.00022054,3]
[349481549,1737207035548,-500.0,0.00022054,3]
[349481550,1737207035558,-551.69,0.00022054,3]
[349481551,1737207035567,-500.0,0.00022054,3]
[349481552,1737207035576,-500.0,0.00022054,3]
[349481553,1737207035586,-500.0,0.00022054,3]
[349481554,1737207035597,-500.0,0.00022054,3]
[349481555,1737207035607,-500.0,0.00022054,3]
[349481556,1737207035617,-533.2,0.00022054,3]
[349481557,1737207035626,-500.0,0.00022054,3]
[349481558,1737207035636,-1350.47,0.00022054,3]
[349481559,1737207035645,-251.06,0.00022054,3]
[349481560,1737207035655,-500.0,0.00022054,3]
[349481561,1737207035665,-500.0,0.00022054,3]
[349481562,1737207035675,-4865.72,0.00022054,3]
[349481563,1737207035685,-500.0,0.00022054,3]
[349481564,1737207035694,-500.0,0.00022054,3]
[349481565,1737207035703,-823.17,0.00022054,3]
[349481566,1737207035713,-1942.41,0.00022054,3]
[349481567,1737207035723,-500.0,0.00022054,3]
[349481568,1737207035732,-500.0,0.00022054,3]
[349481569,1737207035741,-500.0,0.00022054,3]
[349481570,1737207035751,-1192.52,0.00022054,3]
[349481571,1737207035761,-1207.16,0.00022054,3]
[349481572,1737207035772,-500.0,0.00022054,3]
[349481573,1737207035783,-500.0,0.00022054,3]
[349481574,1737207035793,-500.0,0.00022054,3]
[349481575,1737207035802,-500.0,0.00022054,3]
[349481576,1737207035812,-240.79316819,0.00022054,3]